bitfinex-derivatives/quotes_BTCF0:USTF0_20241224
["timestamp","ask_amount","ask_price","bid_price","bid_amount"]
[1735065069965,1.911536,98606.0,98595.0,0.18206085]
[1735065070152,0.3608,98596.0,98595.0,0.18206085]
[1735065071259,0.3608,98596.0,98594.0,0.050742]
[1735065072359,0.3618,98596.0,98594.0,0.050742]
[1735065072961,0.3618,98596.0,98595.0,0.001]
[1735065073369,0.3618,98596.0,98594.0,0.051742]
[1735065074265,0.1337,98595.0,98592.0,0.18206085]
[1735065074455,0.1337,98595.0,98590.0,0.050744]
[1735065074656,0.3608,98594.0,98591.0,0.05226535]
[1735065074867,0.3608,98594.0,98592.0,0.050743]
[1735065076567,0.3618,98594.0,98592.0,0.051743]
[1735065077369,0.050728,98623.0,98592.0,0.051743]
[1735065077370,0.3608,98593.0,98592.0,0.051743]
[1735065077561,0.12107959,98602.0,98601.0,0.050739]
[1735065078762,0.48187959,98610.0,98609.0,0.050735]
[1735065080155,0.48687959,98610.0,98609.0,0.050735]
[1735065080355,0.3658,98610.0,98609.0,0.050735]
[1735065080756,0.050737,98604.0,98603.0,0.18209137]
[1735065081056,0.3608,98606.0,98590.0,0.30322151]
[1735065081259,0.3608,98591.0,98590.0,0.35396551]
[1735065081459,0.3608,98591.0,98590.0,0.050744]
[1735065082764,0.411544,98591.0,98590.0,0.050744]
[1735065082966,0.412544,98591.0,98590.0,0.051744]
[1735065085160,0.415544,98591.0,98590.0,0.051744]
[1735065085366,0.416544,98591.0,98590.0,0.050744]
[1735065085866,0.6638,98591.0,98562.0,0.30322151]
[1735065086169,0.3608,98569.0,98567.0,0.050756]
[1735065088674,0.3618,98569.0,98567.0,0.051756]
[1735065089963,0.3618,98569.0,98567.0,0.001]
[1735065090164,0.3618,98569.0,98567.0,0.051756]
[1735065091968,0.050756,98568.0,98567.0,0.001]
[1735065093171,0.3608,98569.0,98561.0,0.050759]
[1735065093377,0.051756,98568.0,98567.0,0.001]
[1735065095377,0.050756,98568.0,98566.0,0.1362]
[1735065096063,0.051756,98568.0,98567.0,0.001]
[1735065096669,0.051756,98568.0,98566.0,0.1372]
[1735065096982,0.050756,98567.0,98566.0,0.1372]
[1735065098279,0.050756,98567.0,98566.0,0.1362]
[1735065098870,0.051756,98567.0,98566.0,0.1372]
[1735065099470,0.001,98567.0,98566.0,0.1372]
[1735065099977,0.051756,98567.0,98566.0,0.1372]
[1735065101977,0.001,98567.0,98566.0,0.187957]
[1735065106092,0.051756,98567.0,98566.0,0.001]
[1735065107792,0.050757,98566.0,98558.0,0.05228286]
[1735065108091,0.09172041,98567.0,98565.0,0.050757]
[1735065108281,0.09172041,98567.0,98566.0,0.1376]
[1735065108984,0.09072041,98567.0,98566.0,0.1376]
[1735065109194,0.3608,98573.0,98566.0,0.1376]
[1735065109481,0.3608,98573.0,98571.0,0.050754]
[1735065111085,0.3608,98573.0,98572.0,0.1413]
[1735065111489,0.3618,98573.0,98572.0,0.1413]
[1735065112193,0.001,98573.0,98572.0,0.1413]
[1735065112591,0.15128745,98586.0,98585.0,0.050747]
[1735065112891,0.18153693,98594.0,98585.0,0.3608]
[1735065113192,0.050737,98605.0,98603.0,0.050737]
[1735065113392,0.050737,98605.0,98604.0,0.1458]
[1735065114592,0.058737,98605.0,98604.0,0.1468]
[1735065114796,0.058737,98605.0,98604.0,0.001]
[1735065115888,0.067737,98605.0,98604.0,0.001]
[1735065117185,0.015,98605.0,98604.0,0.001]
[1735065118992,0.015,98605.0,98603.0,0.050737]
[1735065118993,0.050739,98600.0,98599.0,0.24306075]
[1735065119692,1.550739,98600.0,98599.0,0.24306075]
[1735065119884,0.050739,98600.0,98599.0,0.24306075]
[1735065120086,0.05074,98599.0,98595.0,0.09888957]
[1735065120280,0.05074,98599.0,98589.0,0.34195032]
[1735065120592,0.006,98600.0,98598.0,0.05074]
[1735065121481,0.013,98600.0,98595.0,0.3608]
[1735065121685,0.013,98600.0,98589.0,0.34195032]
[1735065121686,0.3608,98596.0,98589.0,0.34195032]
[1735065121997,0.050744,98591.0,98589.0,0.34195032]
[1735065122289,0.005,98599.0,98589.0,0.24306075]
[1735065122493,0.005,98599.0,98598.0,0.05074]
[1735065123290,0.3608,98607.0,98606.0,0.050736]
[1735065123592,0.09086825,98611.0,98610.0,0.050734]
[1735065124489,0.43012001,98627.0,98610.0,0.3608]
[1735065124688,0.4296,98627.0,98617.0,0.09888957]
[1735065124897,0.4296,98627.0,98621.0,0.050728]
[1735065124898,0.050728,98623.0,98621.0,0.050728]
[1735065125487,0.050729,98621.0,98617.0,0.09888957]
[1735065125692,0.050729,98621.0,98611.0,0.09888957]
[1735065125897,0.050729,98621.0,98617.0,0.05073]
[1735065126093,0.050729,98621.0,98618.0,0.05073]
[1735065126590,0.050729,98621.0,98616.0,0.3608]
[1735065126899,0.051729,98621.0,98618.0,0.05073]
[1735065127907,0.060729,98621.0,98618.0,0.05073]
[1735065128292,0.051729,98621.0,98618.0,0.05173]
[1735065128503,0.064729,98621.0,98618.0,0.001]
[1735065128691,0.064729,98621.0,98619.0,0.050729]
[1735065129097,0.008,98621.0,98620.0,0.050729]
[1735065129298,0.013,98621.0,98620.0,0.050729]
[1735065129902,0.008,98621.0,98620.0,0.050729]
[1735065130103,0.014,98621.0,98620.0,0.050729]
[1735065131918,0.006,98621.0,98620.0,0.050729]
[1735065132117,0.011,98621.0,98620.0,0.050729]
[1735065132304,0.009,98621.0,98620.0,0.050729]
[1735065132516,0.009,98621.0,98616.0,0.3608]
[1735065132704,0.05073,98618.0,98616.0,0.3608]
[1735065132911,0.050735,98607.0,98606.0,0.24306075]
[1735065134018,0.050738,98603.0,98600.0,0.09940957]
[1735065134213,0.050738,98603.0,98600.0,0.050739]
[1735065134811,0.050735,98609.0,98593.0,0.10837363]
[1735065135009,0.050735,98609.0,98599.0,0.09888957]
[1735065135212,0.050735,98609.0,98604.0,0.050737]
[1735065135516,0.050732,98615.0,98610.0,0.050734]
[1735065135823,0.003,98621.0,98605.0,0.09888957]
[1735065136009,0.050729,98619.0,98614.0,0.050732]
[1735065136210,0.4296,98627.0,98614.0,0.050732]
[1735065136410,0.050731,98617.0,98614.0,0.050732]
[1735065137105,0.4296,98627.0,98617.0,0.05073]
[1735065137106,0.050727,98623.0,98617.0,0.05073]
[1735065137312,0.43012001,98627.0,98617.0,0.05073]
[1735065137519,0.3608,98621.0,98617.0,0.05073]
[1735065137711,0.3618,98621.0,98617.0,0.05073]
[1735065138113,0.3618,98621.0,98619.0,0.050729]
[1735065138317,0.3608,98621.0,98619.0,0.050729]
[1735065138616,0.003,98621.0,98611.0,0.09888957]
[1735065138816,0.003,98621.0,98620.0,0.050729]
[1735065139224,0.008,98621.0,98620.0,0.050729]
[1735065139813,0.004,98621.0,98620.0,0.050729]
[1735065140120,0.3608,98631.0,98620.0,0.050729]
[1735065140121,0.3608,98631.0,98630.0,0.050724]
[1735065140514,0.09086825,98637.0,98636.0,0.050721]
[1735065140912,0.09086825,98637.0,98631.0,0.1418]
[1735065140913,0.09086825,98647.0,98644.0,0.050716]
[1735065141711,0.09086825,98647.0,98646.0,0.050715]
[1735065141917,0.0539422,98647.0,98646.0,0.050715]
[1735065142219,0.0629422,98647.0,98646.0,0.050715]
[1735065142518,0.015,98647.0,98646.0,0.050715]
[1735065142715,0.006,98647.0,98646.0,0.050715]
[1735065143022,0.015,98647.0,98646.0,0.051715]
[1735065143412,0.050714,98648.0,98644.0,0.001]
[1735065143613,0.3608,98648.0,98644.0,0.001]
[1735065143813,0.3608,98645.0,98644.0,0.001]
[1735065144811,0.3608,98645.0,98640.0,0.050718]
[1735065145017,0.411516,98645.0,98638.0,0.09888957]
[1735065145217,0.050716,98645.0,98638.0,0.09888957]
[1735065145422,0.3608,98640.0,98638.0,0.09888957]
[1735065145624,0.3608,98640.0,98633.0,0.24239712]
[1735065145625,0.3608,98640.0,98637.0,0.05072]
[1735065145925,1.64206001,98646.0,98637.0,0.05072]
[1735065146226,0.1415,98646.0,98640.0,0.002]
[1735065146626,0.1415,98646.0,98638.0,0.003]
[1735065146926,0.1415,98646.0,98640.0,0.050718]
[1735065147129,0.3608,98651.0,98645.0,0.050716]
[1735065147428,0.050711,98654.0,98645.0,0.050716]
[1735065147822,0.2807,98657.0,98644.0,0.09888957]
[1735065148030,0.1462,98662.0,98658.0,0.050709]
[1735065148927,0.1462,98662.0,98650.0,0.34128669]
[1735065149122,0.1462,98662.0,98659.0,0.050708]
[1735065149434,0.1522,98662.0,98659.0,0.050708]
[1735065149629,0.1522,98662.0,98658.0,0.001]
[1735065149630,0.006,98662.0,98661.0,0.050708]
[1735065151221,0.007,98662.0,98661.0,0.050708]
[1735065151731,0.00071857,98662.0,98661.0,0.050708]
[1735065151932,0.008,98662.0,98661.0,0.051708]
[1735065152423,0.007,98662.0,98661.0,0.051708]
[1735065154025,0.3608,98677.0,98661.0,0.051708]
[1735065154225,0.3608,98677.0,98674.0,0.050701]
[1735065154428,0.3608,98677.0,98671.0,0.050702]
[1735065154627,0.3608,98677.0,98673.0,0.050701]
[1735065154827,0.050701,98675.0,98668.0,0.050704]
[1735065155129,0.3608,98677.0,98670.0,0.050703]
[1735065155329,0.050697,98682.0,98675.0,0.0507]
[1735065155533,0.00056001,98686.0,98682.0,0.050697]
[1735065155836,0.050695,98686.0,98682.0,0.050697]
[1735065157526,0.050693,98690.0,98676.0,0.09888957]
[1735065157739,0.050693,98690.0,98687.0,0.050694]
[1735065157924,0.05069,98696.0,98687.0,0.050694]
[1735065158120,0.1427,98699.0,98687.0,0.050694]
[1735065158322,0.193388,98699.0,98687.0,0.050694]
[1735065158637,0.1427,98699.0,98687.0,0.050694]
[1735065158826,0.050692,98693.0,98687.0,0.050694]
[1735065159228,0.050692,98693.0,98687.0,0.051694]
[1735065159430,0.050692,98693.0,98687.0,0.052694]
[1735065159631,0.411494,98689.0,98687.0,0.002]
[1735065160635,0.411494,98689.0,98670.0,0.09888957]
[1735065160823,0.3608,98672.0,98662.0,0.24239712]
[1735065161134,0.050704,98668.0,98666.0,0.050705]
[1735065161932,0.2877,98671.0,98660.0,0.09888957]
[1735065162134,0.411508,98661.0,98660.0,0.09888957]
[1735065162341,0.3608,98661.0,98654.0,0.00152037]
[1735065162531,0.050709,98660.0,98654.0,0.00152037]
[1735065163728,0.1354,98659.0,98654.0,0.00152037]
[1735065164632,0.1354,98659.0,98654.0,0.00252037]
[1735065165837,0.3608,98655.0,98654.0,0.00252037]
[1735065166038,0.411512,98655.0,98654.0,0.00252037]
[1735065166737,0.3608,98655.0,98654.0,0.00252037]
[1735065167544,0.3608,98666.0,98664.0,0.050707]
[1735065168437,0.050702,98673.0,98656.0,0.09888957]
[1735065168630,0.050702,98673.0,98667.0,0.050705]
[1735065168838,0.050699,98680.0,98670.0,0.050704]
[1735065169043,0.1474,98671.0,98670.0,0.050704]
[1735065169844,0.050706,98667.0,98663.0,0.050707]
[1735065170044,0.050707,98664.0,98661.0,0.24239712]
[1735065170933,0.050707,98664.0,98659.0,0.050709]
[1735065171134,0.3608,98666.0,98661.0,0.050708]
[1735065171437,0.3608,98666.0,98658.0,0.24239712]
[1735065171739,0.050709,98660.0,98658.0,0.24239712]
[1735065171942,0.281,98659.0,98658.0,0.24239712]
[1735065172842,0.281,98659.0,98657.0,0.24239712]
[1735065173038,0.3608,98658.0,98657.0,0.24239712]
[1735065174237,0.3608,98658.0,98656.0,0.050711]
[1735065174435,0.3608,98658.0,98653.0,0.24239712]
[1735065174436,0.050712,98654.0,98653.0,0.24239712]
[1735065176046,0.050712,98654.0,98651.0,0.050714]
[1735065176235,0.050713,98652.0,98649.0,0.24239712]
[1735065176847,0.411514,98650.0,98649.0,0.02099712]
[1735065177043,0.050719,98640.0,98633.0,0.36459112]
[1735065177249,0.3608,98634.0,98633.0,0.36459112]
[1735065177436,0.411522,98634.0,98633.0,0.36459112]
[1735065178142,0.43021715,98634.0,98633.0,0.36459112]
[1735065178550,0.43021715,98634.0,98633.0,0.007]
[1735065178849,0.43021715,98634.0,98633.0,0.008]
[1735065181944,0.74029515,98634.0,98624.0,0.00152073]
[1735065182146,0.05073,98620.0,98619.0,0.00099]
[1735065182447,0.06942515,98620.0,98619.0,0.00099]
[1735065184239,0.06938274,98620.0,98619.0,0.00199]
[1735065186452,0.06936485,98620.0,98619.0,0.00199]
[1735065187351,0.06936283,98620.0,98619.0,0.00199]
[1735065188648,0.09888957,98640.0,98619.0,0.00199]
[1735065188649,0.00152137,98643.0,98624.0,0.050727]
[1735065188849,0.00152137,98643.0,98642.0,0.050718]
[1735065189051,0.050716,98647.0,98643.0,0.050718]
[1735065189449,0.3608,98653.0,98643.0,0.050718]
[1735065189650,0.050717,98645.0,98643.0,0.050718]
[1735065189851,0.3608,98653.0,98640.0,0.3608]
[1735065190151,0.050719,98642.0,98634.0,0.1435]
[1735065190455,0.050719,98640.0,98639.0,0.050719]
[1735065190652,0.050722,98634.0,98633.0,0.050723]
[1735065190850,0.3608,98645.0,98628.0,0.3608]
[1735065191154,0.3608,98653.0,98648.0,0.050715]
[1735065191155,0.050714,98650.0,98648.0,0.050715]
[1735065191356,0.3608,98653.0,98643.0,0.09888957]
[1735065191653,0.050715,98649.0,98648.0,0.050715]
[1735065192244,0.3608,98653.0,98643.0,0.09888957]
[1735065192450,0.3608,98653.0,98640.0,0.09888957]
[1735065192844,0.001,98649.0,98640.0,0.09888957]
[1735065193059,0.050718,98642.0,98640.0,0.09888957]
[1735065193250,0.050719,98642.0,98639.0,0.3608]
[1735065193462,0.050719,98642.0,98640.0,0.003]
[1735065193656,0.050719,98642.0,98640.0,0.053719]
[1735065193957,0.050719,98642.0,98640.0,0.050719]
[1735065194152,0.050719,98642.0,98640.0,0.053719]
[1735065194361,0.3608,98653.0,98640.0,0.003]
[1735065194651,0.3608,98653.0,98643.0,0.09888957]
[1735065194857,0.3608,98653.0,98644.0,0.1473]
[1735065195159,0.48228497,98665.0,98664.0,0.050707]
[1735065195357,0.12088496,98665.0,98664.0,0.050707]
[1735065196245,0.15273301,98673.0,98672.0,0.050703]
[1735065196246,0.00152088,98673.0,98672.0,0.050703]
[1735065196447,0.3608,98683.0,98680.0,0.050698]
[1735065197453,0.3608,98683.0,98680.0,0.051698]
[1735065198451,0.3638,98683.0,98681.0,0.050698]
[1735065198651,0.011227,98682.0,98681.0,0.050698]
[1735065199251,0.01122688,98682.0,98681.0,0.050698]
[1735065199657,0.01122688,98682.0,98681.0,0.051698]
[1735065200358,0.01322688,98682.0,98681.0,0.051698]
[1735065200553,0.02024152,98682.0,98681.0,0.051698]
[1735065200753,0.02024152,98682.0,98681.0,0.052698]
[1735065200956,0.07093952,98682.0,98681.0,0.002]
[1735065201155,0.050701,98675.0,98672.0,0.050703]
[1735065201354,0.3608,98673.0,98672.0,0.050703]
[1735065201656,0.37904152,98673.0,98672.0,0.050703]
[1735065201857,0.37904152,98673.0,98663.0,0.09888957]
[1735065202054,0.050703,98671.0,98663.0,0.09888957]
[1735065202256,0.0182517,98670.0,98668.0,0.050704]
[1735065202453,0.0182517,98669.0,98668.0,0.050704]
[1735065202659,0.01823586,98669.0,98666.0,0.050705]
[1735065202859,0.01823586,98668.0,98663.0,0.09888957]
[1735065203063,0.050707,98665.0,98663.0,0.09888957]
[1735065203258,0.00701379,98664.0,98661.0,0.050708]
[1735065203562,0.00701379,98663.0,98661.0,0.050708]
[1735065203752,0.00701379,98662.0,98661.0,0.050708]
[1735065204459,0.0577175,98662.0,98661.0,0.050708]
[1735065205264,0.05771848,98662.0,98661.0,0.050708]
[1735065205653,0.00701048,98662.0,98661.0,0.050708]
[1735065205852,0.01101048,98662.0,98661.0,0.050708]
[1735065208270,0.01101327,98662.0,98661.0,0.050708]
[1735065209567,0.02223451,98662.0,98661.0,0.050708]
[1735065209772,0.01101327,98662.0,98661.0,0.050708]
[1735065213563,0.01102782,98662.0,98661.0,0.050708]
[1735065214368,0.02226851,98662.0,98661.0,0.050708]
[1735065217072,0.3608,98672.0,98671.0,0.050703]
[1735065218452,0.3608,98672.0,98671.0,0.051703]
[1735065220759,0.050696,98684.0,98671.0,0.051703]
[1735065220966,0.050696,98684.0,98681.0,0.050697]
[1735065221966,0.36132001,98687.0,98677.0,0.1820589]
[1735065222269,0.3608,98687.0,98677.0,0.1820589]
[1735065222568,0.3608,98687.0,98686.0,0.050695]
[1735065222771,0.411494,98687.0,98686.0,0.050695]
[1735065223768,0.411494,98687.0,98684.0,0.1820589]
[1735065223769,0.3608,98687.0,98684.0,0.1820589]
[1735065223974,0.050695,98685.0,98684.0,0.1820589]
[1735065226273,0.050699,98679.0,98678.0,0.050699]
[1735065227465,0.3608,98687.0,98670.0,0.40218952]
[1735065227669,0.050703,98671.0,98670.0,0.14959257]
[1735065227867,0.050703,98671.0,98670.0,0.050703]
[1735065229071,0.05758522,98671.0,98670.0,0.050703]
[1735065229269,0.05758533,98671.0,98670.0,0.050703]
[1735065229965,0.05759802,98671.0,98670.0,0.050703]
[1735065230572,0.00689502,98671.0,98670.0,0.050703]
[1735065232572,0.00690549,98671.0,98670.0,0.050703]
[1735065233877,0.05760849,98671.0,98670.0,0.050703]
[1735065235375,0.05759514,98671.0,98670.0,0.050703]
[1735065236878,0.050705,98667.0,98661.0,0.09888957]
[1735065237083,0.00689394,98666.0,98661.0,0.09888957]
[1735065237381,0.00689394,98665.0,98664.0,0.050707]
[1735065238472,0.00689758,98665.0,98661.0,0.10288957]
[1735065238774,0.050708,98661.0,98660.0,0.05222928]
[1735065238978,0.05760307,98661.0,98660.0,0.05222928]
[1735065240783,0.00689507,98661.0,98660.0,0.05222928]
[1735065241079,0.00689768,98661.0,98660.0,0.05222928]
[1735065241384,0.00689768,98661.0,98660.0,0.05722928]
[1735065242876,0.00689768,98661.0,98660.0,0.06022928]
[1735065243683,0.00689768,98661.0,98660.0,0.06422928]
[1735065244491,0.18093997,98689.0,98673.0,0.050702]
[1735065244675,0.03073432,98682.0,98681.0,0.050698]
[1735065244875,0.18149998,98689.0,98681.0,0.050698]
[1735065244876,0.06122806,98689.0,98688.0,0.050695]
[1735065245176,0.06122806,98689.0,98688.0,0.411495]
[1735065245480,0.1,98700.0,98682.0,0.138]
[1735065245675,0.1,98700.0,98699.0,0.050689]
[1735065247282,0.1,98700.0,98699.0,0.051689]
[1735065249583,0.1423,98722.0,98699.0,0.051689]
[1735065249787,0.3608,98724.0,98707.0,0.050685]
[1735065250088,0.050675,98727.0,98707.0,0.050685]
[1735065250385,0.2814,98729.0,98707.0,0.192585]
[1735065250582,0.050673,98731.0,98716.0,0.05068]
[1735065250787,0.3608,98736.0,98735.0,0.05067]
[1735065251583,1.50052001,98745.0,98726.0,0.09888957]
[1735065251783,0.01574468,98740.0,98739.0,0.050668]
[1735065252281,0.01574468,98742.0,98740.0,0.050668]
[1735065252481,1.56692969,98745.0,98740.0,0.050668]
[1735065252784,0.06640968,98745.0,98743.0,0.050666]
[1735065252989,0.01574468,98743.0,98739.0,0.001]
[1735065253189,0.01574468,98742.0,98739.0,0.001]
[1735065253385,0.01574468,98742.0,98741.0,0.050667]
[1735065253590,0.01574468,98745.0,98744.0,0.050666]
[1735065253884,1.5,98753.0,98744.0,0.050666]
[1735065254390,1.5,98753.0,98745.0,0.050665]
[1735065254588,0.050665,98747.0,98745.0,0.050665]
[1735065254884,0.411465,98746.0,98745.0,0.050665]
[1735065255091,0.050667,98742.0,98741.0,0.051667]
[1735065255587,0.3608,98746.0,98741.0,0.001]
[1735065255891,0.3608,98746.0,98745.0,0.051665]
[1735065256593,0.36759083,98746.0,98745.0,0.051665]
[1735065256892,0.00679083,98746.0,98745.0,0.051665]
[1735065257290,0.00679083,98746.0,98745.0,0.052665]
[1735065257499,0.00679083,98746.0,98745.0,0.051665]
[1735065257683,0.00678997,98746.0,98745.0,0.051665]
[1735065258383,0.00678997,98746.0,98745.0,0.052665]
[1735065259592,0.36758997,98746.0,98745.0,0.001]
[1735065259787,0.36758997,98746.0,98745.0,0.002]
[1735065260186,1.86758997,98746.0,98745.0,0.002]
[1735065260584,1.86758997,98746.0,98745.0,0.001]
[1735065260780,1.88329666,98746.0,98745.0,0.001]
[1735065261383,0.38329666,98746.0,98745.0,0.001]
[1735065261584,0.36758997,98746.0,98716.0,0.54229571]
[1735065261795,0.3608,98728.0,98716.0,0.18213571]
[1735065262099,0.3608,98717.0,98716.0,0.18149571]
[1735065262390,0.36758997,98717.0,98716.0,0.18149571]
[1735065262898,0.36758997,98717.0,98712.0,0.050682]
[1735065263095,0.00678997,98716.0,98712.0,0.050682]
[1735065263290,0.00678997,98715.0,98707.0,0.09888957]
[1735065263482,0.00678997,98714.0,98713.0,0.050682]
[1735065265384,0.00678997,98714.0,98713.0,0.054682]
[1735065268127,0.1365,98716.0,98713.0,0.004]
[1735065268292,0.00678167,98715.0,98713.0,0.054682]
[1735065268497,0.00678167,98714.0,98713.0,0.054682]
[1735065269695,0.00678167,98714.0,98713.0,0.004]
[1735065270388,0.00678992,98714.0,98713.0,0.004]
[1735065272888,0.05747092,98714.0,98713.0,0.004]
[1735065273901,0.050687,98703.0,98702.0,0.18149571]
[1735065274200,0.41827692,98703.0,98702.0,0.23218271]
[1735065274994,0.41827692,98703.0,98702.0,0.059687]
[1735065275502,0.411487,98703.0,98702.0,0.059687]
[1735065275690,0.41828455,98703.0,98702.0,0.059687]
[1735065276000,0.41828455,98703.0,98702.0,0.009]
[1735065276500,0.41828178,98703.0,98702.0,0.012]
[1735065279602,0.41828728,98703.0,98702.0,0.012]
[1735065281593,1.91828728,98703.0,98702.0,0.012]
[1735065281797,0.41828728,98703.0,98702.0,0.012]
[1735065282708,0.41828728,98703.0,98702.0,0.062687]
[1735065283205,0.36760028,98703.0,98702.0,0.062687]
[1735065283702,0.00680028,98703.0,98702.0,0.062687]
[1735065285298,0.00678764,98703.0,98702.0,0.012]
[1735065285499,0.05747464,98703.0,98702.0,0.062687]
[1735065285699,0.08089597,98703.0,98702.0,0.062687]
[1735065290296,0.03020897,98703.0,98702.0,0.062687]
[1735065291408,0.03021249,98703.0,98702.0,0.062687]
[1735065293313,0.03021249,98703.0,98702.0,0.33951129]
[1735065293703,0.03021886,98703.0,98702.0,0.33951129]
[1735065296116,0.03021886,98703.0,98702.0,0.66853102]
[1735065296507,0.050677,98722.0,98702.0,0.66853102]
[1735065296815,0.09027023,98724.0,98702.0,0.66853102]
[1735065296816,0.09027023,98724.0,98714.0,0.41148]
[1735065297032,0.05068,98717.0,98714.0,0.51036957]
[1735065297204,0.05068,98717.0,98714.0,0.41148]
[1735065297411,0.05068,98717.0,98715.0,0.05068]
[1735065298405,0.09027023,98725.0,98715.0,0.05068]
[1735065298615,0.05068,98716.0,98715.0,0.05068]
[1735065299118,0.05068,98716.0,98715.0,0.05368]
[1735065301505,0.05068,98716.0,98715.0,0.05068]
[1735065301718,0.050677,98722.0,98720.0,0.050677]
[1735065301923,0.050677,98721.0,98720.0,0.050677]
[1735065302514,0.09027023,98726.0,98725.0,0.050675]
[1735065302717,0.09027023,98726.0,98725.0,0.411475]
[1735065303022,0.09027023,98728.0,98727.0,0.050674]
[1735065304308,0.050671,98733.0,98732.0,0.050672]
[1735065305022,0.09179025,98737.0,98736.0,0.05067]
[1735065305515,0.05218902,98737.0,98736.0,0.05067]
[1735065306624,0.05718902,98737.0,98736.0,0.05167]
[1735065308520,0.06391175,98737.0,98736.0,0.05167]
[1735065311126,0.06391175,98737.0,98736.0,0.05067]
[1735065311731,0.05718902,98737.0,98736.0,0.05067]
[1735065311919,0.06389587,98737.0,98736.0,0.05067]
[1735065313824,0.01322687,98737.0,98736.0,0.05067]
[1735065314739,0.00652002,98737.0,98736.0,0.05067]
[1735065315027,0.01323321,98737.0,98736.0,0.05067]
[1735065315733,0.050669,98736.0,98735.0,0.1818074]
[1735065315929,0.05738219,98736.0,98735.0,0.1818074]
[1735065316226,0.05738219,98736.0,98735.0,0.2324774]
[1735065316428,0.05738219,98736.0,98735.0,0.05067]
[1735065316631,0.00671319,98736.0,98735.0,0.05067]
[1735065317526,0.01171319,98736.0,98735.0,0.05067]
[1735065318526,0.06238219,98736.0,98735.0,0.05067]
[1735065320434,0.06238219,98736.0,98735.0,0.23243505]
[1735065320829,0.06236885,98736.0,98735.0,0.23243505]
[1735065321527,0.01169985,98736.0,98735.0,0.23243505]
[1735065321736,0.01169985,98736.0,98735.0,0.29315032]
[1735065322827,0.00152002,98737.0,98736.0,0.05067]
[1735065323021,0.050664,98748.0,98747.0,0.050664]
[1735065323735,0.09027023,98749.0,98748.0,0.050663]
[1735065324337,0.050662,98751.0,98747.0,0.001]
[1735065324520,0.050662,98751.0,98750.0,0.050662]
[1735065325232,0.14093023,98756.0,98755.0,0.05066]
[1735065326039,0.05066,98756.0,98755.0,0.05066]
[1735065326228,0.050657,98761.0,98760.0,0.050657]
[1735065326428,0.09027023,98762.0,98761.0,0.050657]
[1735065327330,0.050655,98765.0,98764.0,0.050655]
[1735065327933,0.050657,98762.0,98761.0,0.001]
[1735065328130,0.06640888,98762.0,98761.0,0.001]
[1735065328333,0.050658,98760.0,98759.0,0.18182408]
[1735065328534,0.1318,98768.0,98758.0,0.29315267]
[1735065328837,0.050658,98759.0,98758.0,0.29315267]
[1735065329835,0.050658,98759.0,98758.0,0.050658]
[1735065329836,0.06641331,98759.0,98758.0,0.050658]
[1735065330138,0.050658,98759.0,98758.0,0.050658]
[1735065333241,0.01575326,98759.0,98756.0,0.24249467]
[1735065334438,0.1318,98768.0,98759.0,0.050658]
[1735065334639,0.050657,98761.0,98760.0,0.050658]
[1735065334841,0.00665689,98761.0,98757.0,0.050659]
[1735065335035,0.00665689,98760.0,98757.0,0.050659]
[1735065335336,0.050655,98766.0,98758.0,0.050659]
[1735065335337,0.00665689,98759.0,98758.0,0.050659]
[1735065335737,0.050656,98763.0,98761.0,0.050657]
[1735065335934,0.00663419,98762.0,98761.0,0.050657]
[1735065336441,0.00663419,98762.0,98753.0,0.24249467]
[1735065336633,0.050658,98760.0,98759.0,0.050658]
[1735065336939,0.05729219,98760.0,98759.0,0.050658]
[1735065338444,0.05729219,98760.0,98759.0,0.23247633]
[1735065338832,0.0572797,98760.0,98759.0,0.23247633]
[1735065339232,0.05727881,98760.0,98759.0,0.23247633]
[1735065339434,0.05727881,98760.0,98759.0,0.050658]
[1735065339635,0.30662081,98760.0,98757.0,0.04402733]
[1735065339937,0.050664,98747.0,98746.0,0.30348487]
[1735065340242,1.91808481,98747.0,98746.0,0.30348487]
[1735065340445,0.41808481,98747.0,98746.0,0.30348487]
[1735065340737,0.36742081,98747.0,98746.0,0.30348487]
[1735065341041,0.050662,98752.0,98738.0,0.2659]
[1735065341342,0.00662224,98751.0,98742.0,0.09888957]
[1735065341544,0.00662224,98750.0,98749.0,0.050663]
[1735065341746,0.05728922,98750.0,98749.0,0.050663]
[1735065342137,0.05728922,98750.0,98742.0,0.09888957]
[1735065342138,0.050666,98745.0,98744.0,0.050665]
[1735065342442,0.05729222,98745.0,98744.0,0.050665]
[1735065342642,0.05729222,98745.0,98738.0,0.050669]
[1735065342643,0.050668,98741.0,98738.0,0.050669]
[1735065342835,0.00662622,98740.0,98738.0,0.053669]
[1735065343035,0.00662622,98739.0,98738.0,0.053669]
[1735065343436,0.00662622,98739.0,98738.0,0.050669]
[1735065344046,0.00662622,98739.0,98738.0,0.053669]
[1735065344446,0.00662622,98739.0,98738.0,0.050669]
[1735065344643,0.00662622,98739.0,98738.0,0.053669]
[1735065348251,0.00663171,98739.0,98738.0,0.053669]
[1735065348944,0.09075188,98746.0,98745.0,0.050665]
[1735065349745,0.050663,98749.0,98742.0,0.050667]
[1735065349951,0.09075188,98751.0,98750.0,0.050663]
[1735065350145,0.12100251,98758.0,98757.0,0.050659]
[1735065351247,0.01577849,98762.0,98761.0,0.050657]
[1735065351654,0.01577849,98764.0,98763.0,0.050656]
[1735065352154,0.050653,98769.0,98766.0,0.050655]
[1735065352655,0.050656,98763.0,98759.0,0.050658]
[1735065352949,0.050656,98763.0,98760.0,0.050658]
[1735065353155,0.050656,98763.0,98755.0,0.3608]
[1735065353554,0.050656,98763.0,98760.0,0.050658]
[1735065353950,0.050656,98763.0,98761.0,0.050657]
[1735065357461,0.050661,98753.0,98752.0,0.050662]
[1735065360564,0.12100251,98760.0,98755.0,0.05066]